{"text_format":"1","workbook":"xlsx","n_sheets":9,"sheets":["Instructivo","DEMANDA ANUAL","VOLUMEN DE QUEJAS","COSTO ADMINISTRACIÓN PÚBLICA","RESUMEN DE COSTOS AP","AUXILIAR COSTO ADMINISTRACIÓN","TIEMPO DE RESPUESTA","CANAL ATENCIÓN","RESUMEN"],"not_rendered":{"charts":0,"images":7,"macros":1,"external_links":0,"defined_names":0,"comments":5,"pivot_tables":0},"unopened":[],"bounds":{"document_bytes":16777216,"sheet_cells":100000,"rows_first":2000,"rows_last":500,"rows_between":2000,"halvings":0,"cell_chars":16384,"cell_head_chars":4096},"cells_cut":0,"cells_raw":0,"read":"whole","date_system":"1900"}

{"sheet":"Instructivo","index":0,"n_rows":76,"n_cols":1,"rows_kept":76,"cut":false,"hidden":false,"merged":[]}
["CRITERIO DE PRIORIZACIÓN DE TRÁMITES ADMINISTRATIVOS"]
["Instructivo"]
["Consideraciones generales"]
[]
["En las hojas “COSTO DE ADMINISTRACIÓN PÚBLICA”y “RESUMEN”  para añadir más trámites y que apliquen las fórmulas, se deberá seleccionar la primera fila y copiarla una por cada trámite de la entidad"]
[]
["Todas las hojas tienen columnas de color celeste, en las cuales NO deben ingresar valores ya que contienen fórmulas."]
["Para la carga en GOB.EC. La institución debe recordar que el peso máximo del archivo es de 2 MB."]
["Esquema de puntuación"]
[]
["Las instituciones, previo a la elaboración de su plan de simplificación de trámites institucionales, deberán realizar la priorización de los trámites a ser simplificados."]
["Para priorizar un trámite, se realizará un análisis de criterios básicos y adicionales basado en información que disponen las instituciones sujetas a esta norma técnica. Cada criterio será puntuado según los lineamientos presentes en esta norma."]
["a) Demanda Anual"]
["Considerará el volumen o frecuencia de las solicitudes que ingresan al año a cada institución para la gestión de un trámite en particular."]
["La identificación del volumen anual de los trámites se realizará a través de sus registros de transacciones y/o el número de visitas de consulta de información realizadas a través de páginas web institucionales."]
["Para realizar el registro realice lo siguiente:"]
["1.- Seleccione la hoja DEMANDA ANUAL"]
["2.- Ingrese los trámites de la institución registrando el identificador y nombre en las columnas respectivas.  "]
["3.- Para cada trámite debe especificar en la columna DEMANDA ANUAL el volumen o frecuencia anual, de acuerdo a lo mencionado anteriormente."]
["4.- Una vez terminado el llenado solicitado presione el botón PUNTUACIÓN, se ordenara de menor a mayor. "]
["5.- Usted visualizará el ordenamiento de los trámites ingresados de acuerdo al número de  volumen o frecuencia anual."]
["6.- Así mismo, usted visualizará el puntaje obtenido en la columna PUNTUACIÓN de acuerdo al grupo obtenido por cada trámite de acuerdo al número de volumen o frecuencia anual cosiderando lo siguiente: Primer grupo (trámites con menor demanda) = 0; Segundo Grupo = 12; Tercer Grupo = 21 y Cuarto Grupo= 30.  Considere que todo residuo en las agrupaciones se inlcuirá en el grupo más bajo."]
[]
["b) Volumen de quejas asociadas a un trámite: "]
["Considerará la cantidad de quejas recibidas en relación a un trámite durante un año. Estas quejas deberán estar documentadas en medios físicos y/o digitales."]
["Para determinar la puntuación, se colocará en una tabla todos los trámites con sus correspondientes quejas ordenándose de menor a mayor. Se dividirá en 4 partes en los que cada grupo contenga la misma cantidad de trámites."]
["Para realizar el registro realice lo siguiente:"]
["1.- Seleccione la hoja VOLUMEN DE QUEJAS"]
["2.- Ingrese los trámites de la institución registrando el identificador y nombre en las columnas respectivas.  Si usted requiere de acuerdo al número de trámites copie filas adicionales que estén dentro del cuadro"]
["3.- Para cada trámite debe especificar en la columna VOLUMEN QUEJAS el número de quejas anual, de acuerdo a lo mencionado anteriormente."]
["4.- Una vez terminado el llenado solicitado presione el botón PUNTUACIÓN."]
["5.- Usted visualizará el ordenamiento de los trámites ingresados de acuerdo al número de  volumen o frecuencia anual."]
["6.- Así mismo, usted visualizará el puntaje obtenido en la columna PUNTUACIÓN de acuerdo al grupo obtenido por cada trámite de acuerdo al número de volumen o frecuencia anual cosiderando lo siguiente: Primer grupo (trámites con cantidad de quejas) = 0; Segundo Grupo = 10; Tercer Grupo = 18 y Cuarto Grupo= 25.  Considere que todo residuo en las agrupaciones se inlcuirá en el grupo más bajo."]
[]
["c) Costo para la administración pública: "]
["En cada trámite, basado en un caso estándar, se deberá estimar el costo incurrido en el costo de personal y recursos necesarios para su atención desde que el administrado entregó todos los requisitos hasta que la institución entregue el producto, respuesta o servicio requerido en el trámite. Se considerará:"]
["• Costo de personal:"]
["Costo del personal para atender el trámite, se excluyen actividades realizadas automáticamente o que dependen del administrado. El tiempo deberá considerar únicamente el tiempo efectivo de trabajo del personal, no debe considerar el tiempo de espera o de movimiento."]
["• Costo de recursos:"]
["Se deberá considerar el costo directo en el que la institución debe incurrir para atender un trámite. Se debe considerar los insumos o materia prima necesaria u cualquier otro que la institución considere pertinente."]
["Para realizar el registro realice lo siguiente:"]
["1.- Seleccione la hoja COSTO ADMINISTRACIÓN PÚBLICA"]
["2.- Ingrese los trámites de la institución registrando el identificador y nombre en las columnas respectivas.  Si usted requiere de acuerdo al número de trámites copie filas adicionales que estén dentro del cuadro"]
["3.- Para calcular el tiempo de las actividades, utilizar la hoja AUXILIAR COSTO ADMINISTRACIÓN donde deberá listar todas las actividades que realiza la institución en un caso estándar y asignar el tiempo mínimo que toma cada actvidad (en horas). El tiempo total de las actividades, deberá ingresar en la correspondiente celda de la hoja COSTO ADMINISTRACIÓN PÚBLICA"]
["4.- En función de la información registrada en el paso 3, la matriz entregará el costo del personal"]
["5.- Completar la columna \"Costo recursos\", en la cual ingresará el costo directo en el que incurre la institución para entregar el trámite. En este valor se considerarán los valores correspondientes a insumos y/o materia prima mínimos que se invierten por cada trámite (no se considera mano de obra)"]
["6.- La columna \"Costo para la adm. pública\" mostrará el costto de este criterio para cada trámite"]
["7.- Una vez que disponga del Costo para la administración pública, presionar el botón \"GENERAR\"."]
["8. Visualizar la hoja “RESUMEN DE COSTO AP” en la que va a encontrar copiada las celdas necesarias para el ordenamiento y puntuación de las mismas al presionar el botón “PUNTUACIÓN”"]
["9.- Que se va a dividirá en 4 grupos que contengan el mismo número de trámites o cercano.:"]
["10.- Calificado de acuerdo a lo siguiente: Primer grupo (trámites con menor costo para la administración) = 0; Segundo Grupo = 8; Tercer Grupo = 14 y Cuarto Grupo= 20"]
[]
["d) Tiempo de respuesta: "]
["Considerará los tiempos que a las instituciones les toma dar respuesta a un trámite desde que reciben la solicitud del administrado hasta la finalización del mismo. Para la definición del tiempo se considerará un caso estándar."]
["Para determinar la puntuación, se colocará en una tabla todos los trámites con el tiempo de respuesta, ordenándose de menor a mayor. Se dividirá en 4 grupos, en los que cada uno contenga la misma cantidad de trámites."]
["Para realizar el registro realice lo siguiente:"]
["1.- Seleccione la hoja TIEMPO DE RESPUESTA"]
["2.- Ingrese los trámites de la institución registrando el identificador y nombre en las columnas respectivas.  Si usted requiere de acuerdo al número de trámites copie filas adicionales que estén dentro del cuadro"]
["3.- Para cada trámite debe especificar en la columna TIEMPO RESPUESTA el tiempo, de acuerdo a lo mencionado anteriormente."]
["4.- Una vez terminado el llenado solicitado presione el botón PUNTUACIÓN."]
["5.- Usted visualizará el ordenamiento de los trámites ingresados de acuerdo al número de  volumen o frecuencia anual."]
["6.- Así mismo, usted visualizará el puntaje obtenido en la columna PUNTUACIÓN de acuerdo al grupo obtenido por cada trámite de acuerdo al número de volumen o frecuencia anual cosiderando lo siguiente:  Primer grupo (trámites con tiempo de respuesta) = 0; Segundo Grupo = 4; Tercer Grupo = 7 y Cuarto Grupo= 10.  Considere que todo residuo en las agrupaciones se inlcuirá en el grupo más bajo."]
[]
["e) Canal de atención: "]
["Considerará los canales de atención a través de los cuales el administrado puede iniciar el trámite."]
["Para realizar el registro realice lo siguiente:"]
["1.- Seleccione la hoja CANAL ATENCIÓN"]
["2.- Ingrese los trámites de la institución registrando el identificador y nombre en las columnas respectivas.  Si usted requiere de acuerdo al número de trámites copie filas adicionales que estén dentro del cuadro"]
["3.- Para cada trámite debe seleccionar el canal de atención del trámite en la columna CANAL ATENCIÓN, que pueden ser: Totalmente en línea, Inicia en línea, Presencial, de acuerdo a lo mencionado anteriormente."]
["4.- De acuerdo a la selección usted obtendrá la puntuación del trámite que se visualizará en la columna PUNTUACIÓN."]
[]
["f) Resumen"]
["En esta hoja deberá consolidar todas las puntuaciones obtenidas para cada trámite en los criterios a) hasta e). Adicionalmente deberá analizar los 4 criterios adicionales que dispone la norma técnica, para estos últimos solamente deberá seleccionar en la celda correspondiente y la matriz asignará la puntuación adicional. Los criterios que deberá considerar son:\n- NECESIDADES CIUDADANAS: Si la institución ha implementado mecanismos para identificar necesidades ciudadanas respecto al trámite, seleccionar \"SI\", caso contrario, seleccionar \"NO\"\n- SUSCEPTIBILIDAD A CORRUPCIÓN: Si la institución dispone de información documentada sobre presuntos actos de corrupción, seleccionar \"SI\", caso contrario, seleccionar \"NO\"\n- VOLUMEN DE DEVOLUCIONES: Si la institución posee documentación sobre devoluciones del trámite en una cantidad significativa, seleccionar \"SI\", caso contrario, seleccionar \"NO\"\n- DESCONCENTRACIÓN: Si el trámite se realiza solo de forma presencial y, adicionalmente solo se atiende en la oficina matriz, seleccionar \"SI\", caso contrario, seleccionar \"NO\""]
["En la columna puntaje total se realizará la sumatoria de los valores de los criterios básicos y adicionales. Este valor deberá registrarse en la plataforma GOB.EC"]
[]
["PRIORIZACIÓN DE TRÁMITES: Una vez que se haya registrado el valor del diagnóstico económico y de la puntuación de todos y cada uno de los trámites publicados en la plataforma GOB.EC, la plataforma realizará la identificación de los trámites a simplificar de acuerdo a los criterios definidores en el artículo 11 de la norma técnica de diagnóstico económico y priorización de trámites administrativos"]

{"sheet":"DEMANDA ANUAL","index":1,"n_rows":12,"n_cols":4,"rows_kept":12,"cut":false,"hidden":false,"merged":[[0,0,0,3],[1,0,1,3]]}
["PRIORIZACIÓN DE TRÁMITES ADMINISTRATIVOS"]
["DEMANDA ANUAL"]
[]
["IDENTIFICADOR","TRÁMITE","DEMANDA ANUAL","PUNTUACIÓN"]
[null,"ACCESO A CAMBIOS DE MEDIDAS SOCIOEDUCATIVAS PARA ADOLESCENTES INFRACTORES",0,0]
[null,"ADMISIÓN DE PERSONA DETENIDA EN UNIDAD DE ASEGURAMIENTO TRANSITORIO",0,0]
[null,"ACCESO A LA INFORMACIÓN PÚBLICA",80,12]
[null,"ADMISIÓN DE ADOLESCENTES EN CONFLICTO CON LA LEY EN CENTROS DE ADOLESCENTES INFRACTORES",643,12]
[null,"INSTALACIÓN Y MONITOREO DE DISPOSITIVO DE VIGILANCIA ELECTRÓNICA A PERSONAS ADULTAS POR DISPOSICIÓN JUDICIAL",804,21]
[null,"ACCESO A BENEFICIOS PENITENCIARIOS O CAMBIOS DE RÉGIMEN",4440,21]
[null,"ADMISIÓN DE PERSONA CON PRIVACIÓN PROVISIONAL DE LIBERTAD EN CENTROS DE\nPRIVACIÓN PROVISIONAL DE LIBERTAD",13448,30]
[null,"ADMISIÓN DE PERSONAS CON SENTENCIA CONDENATORIA EJECUTORIADA EN\nCENTROS DE REHABILITACIÓN SOCIAL",24627,30]

{"sheet":"VOLUMEN DE QUEJAS","index":2,"n_rows":12,"n_cols":4,"rows_kept":12,"cut":false,"hidden":false,"merged":[[0,0,0,3],[1,0,1,3]]}
["PRIORIZACIÓN DE TRÁMITES ADMINISTRATIVOS"]
["VOLUMEN DE QUEJAS"]
[]
["IDENTIFICADOR","TRÁMITE","VOLUMEN QUEJAS","PUNTUACIÓN"]
[null,"ACCESO A BENEFICIOS PENITENCIARIOS O CAMBIOS DE RÉGIMEN",0,0]
[null,"ACCESO A CAMBIOS DE MEDIDAS SOCIOEDUCATIVAS PARA ADOLESCENTES INFRACTORES",0,0]
[null,"ADMISIÓN DE ADOLESCENTES EN CONFLICTO CON LA LEY EN CENTROS DE ADOLESCENTES\nINFRACTORES",0,0]
[null,"ADMISIÓN DE PERSONA CON PRIVACIÓN PROVISIONAL DE LIBERTAD EN CENTROS DE\nPRIVACIÓN PROVISIONAL DE LIBERTAD",0,0]
[null,"ADMISIÓN DE PERSONA DETENIDA EN UNIDAD DE ASEGURAMIENTO TRANSITORIO",0,0]
[null,"ADMISIÓN DE PERSONAS CON SENTENCIA CONDENATORIA EJECUTORIADA EN\nCENTROS DE REHABILITACIÓN SOCIAL",0,0]
[null,"INSTALACIÓN Y MONITOREO DE DISPOSITIVO DE VIGILANCIA ELECTRÓNICA A PERSONAS ADULTAS\nPOR DISPOSICIÓN JUDICIAL",0,0]
[null,"ACCESO A LA INFORMACIÓN PÚBLICA",3,25]

{"sheet":"COSTO ADMINISTRACIÓN PÚBLICA","index":3,"n_rows":13,"n_cols":9,"rows_kept":13,"cut":false,"hidden":false,"merged":[[0,0,0,5],[1,0,1,5],[3,0,4,0],[3,1,4,1],[3,2,3,4],[3,5,4,5]]}
["PRIORIZACIÓN DE TRÁMITES ADMINISTRATIVOS"]
["COSTOS PARA LA ADMINISTRACIÓN PÚBLICA"]
[]
["IDENTIFICADOR","TRÁMITE","INSUMOS PARA COSTO",null,null,"COSTO PARA LA ADM. PÚBLICA",null,"SBU",400]
[null,null,"TIEMPO (HORAS)","COSTO PERSONAL","COSTO RECURSOS"]
[null,"ACCESO A BENEFICIOS PENITENCIARIOS O CAMBIOS DE RÉGIMEN",2400,{"$f":"C6*$I$4/160","v":6000},0,{"$f":"D6+E6","v":6000}]
[null,"ACCESO A CAMBIOS DE MEDIDAS SOCIOEDUCATIVAS PARA ADOLESCENTES INFRACTORES",40,100,0,100]
[null,"ADMISIÓN DE ADOLESCENTES EN CONFLICTO CON LA LEY EN CENTROS DE ADOLESCENTES\nINFRACTORES",0.17,0.42499999999999999,0,0.42499999999999999]
[null,"ADMISIÓN DE PERSONA CON PRIVACIÓN PROVISIONAL DE LIBERTAD EN CENTROS DE\nPRIVACIÓN PROVISIONAL DE LIBERTAD",0.17,0.42499999999999999,0,0.42499999999999999]
[null,"ADMISIÓN DE PERSONA DETENIDA EN UNIDAD DE ASEGURAMIENTO TRANSITORIO",0.17,0.42499999999999999,0,0.42499999999999999]
[null,"ADMISIÓN DE PERSONAS CON SENTENCIA CONDENATORIA EJECUTORIADA EN\nCENTROS DE REHABILITACIÓN SOCIAL",0.17,0.42499999999999999,0,0.42499999999999999]
[null,"INSTALACIÓN Y MONITOREO DE DISPOSITIVO DE VIGILANCIA ELECTRÓNICA A PERSONAS ADULTAS\nPOR DISPOSICIÓN JUDICIAL",1,2.5,0,2.5]
[null,"ACCESO A LA INFORMACIÓN PÚBLICA",96,240,0,240]

{"sheet":"RESUMEN DE COSTOS AP","index":4,"n_rows":12,"n_cols":4,"rows_kept":12,"cut":false,"hidden":false,"merged":[[0,0,0,5],[1,0,1,5]]}
["PRIORIZACIÓN DE TRÁMITES ADMINISTRATIVOS"]
["COSTOS PARA LA ADMINISTRACIÓN PÚBLICA"]
[]
["IDENTIFICADOR","TRÁMITE","COSTO PARA LA ADM. PÚBLICA","PUNTUACIÓN"]
[null,"ADMISIÓN DE ADOLESCENTES EN CONFLICTO CON LA LEY EN CENTROS DE ADOLESCENTES\nINFRACTORES",0.42499999999999999,0]
[null,"ADMISIÓN DE PERSONA CON PRIVACIÓN PROVISIONAL DE LIBERTAD EN CENTROS DE\nPRIVACIÓN PROVISIONAL DE LIBERTAD",0.42499999999999999,0]
[null,"ADMISIÓN DE PERSONA DETENIDA EN UNIDAD DE ASEGURAMIENTO TRANSITORIO",0.42499999999999999,8]
[null,"ADMISIÓN DE PERSONAS CON SENTENCIA CONDENATORIA EJECUTORIADA EN\nCENTROS DE REHABILITACIÓN SOCIAL",0.42499999999999999,8]
[null,"INSTALACIÓN Y MONITOREO DE DISPOSITIVO DE VIGILANCIA ELECTRÓNICA A PERSONAS ADULTAS\nPOR DISPOSICIÓN JUDICIAL",2.5,14]
[null,"ACCESO A CAMBIOS DE MEDIDAS SOCIOEDUCATIVAS PARA ADOLESCENTES INFRACTORES",100,14]
[null,"ACCESO A LA INFORMACIÓN PÚBLICA",240,20]
[null,"ACCESO A BENEFICIOS PENITENCIARIOS O CAMBIOS DE RÉGIMEN",6000,20]

{"sheet":"AUXILIAR COSTO ADMINISTRACIÓN","index":5,"n_rows":20,"n_cols":3,"rows_kept":20,"cut":false,"hidden":false,"merged":[[1,1,1,2]]}
[]
["TRÁMITE:"]
["NO.","ACTIVIDAD","TIEMPO (HORAS)"]
[1]
[2]
[3]
[4]
[5]
[6]
[7]
[8]
[9]
[10]
[11]
[12]
[13]
[14]
[15]
[]
[null,"SUMATORIA ACTIVIDADES",{"$f":"SUM(C4:C19)","v":0}]

{"sheet":"TIEMPO DE RESPUESTA","index":6,"n_rows":12,"n_cols":4,"rows_kept":12,"cut":false,"hidden":false,"merged":[[0,0,0,3],[1,0,1,3]]}
["PRIORIZACIÓN DE TRÁMITES ADMINISTRATIVOS"]
["TIEMPO DE RESPUESTA"]
[]
["IDENTIFICADOR","TRÁMITE","TIEMPO RESPUESTA","PUNTUACIÓN"]
[null,"ADMISIÓN DE ADOLESCENTES EN CONFLICTO CON LA LEY EN CENTROS DE ADOLESCENTES\nINFRACTORES",0.17,0]
[null,"ADMISIÓN DE PERSONA CON PRIVACIÓN PROVISIONAL DE LIBERTAD EN CENTROS DE\nPRIVACIÓN PROVISIONAL DE LIBERTAD",0.17,0]
[null,"ADMISIÓN DE PERSONA DETENIDA EN UNIDAD DE ASEGURAMIENTO TRANSITORIO",0.17,4]
[null,"ADMISIÓN DE PERSONAS CON SENTENCIA CONDENATORIA EJECUTORIADA EN\nCENTROS DE REHABILITACIÓN SOCIAL",0.17,4]
[null,"INSTALACIÓN Y MONITOREO DE DISPOSITIVO DE VIGILANCIA ELECTRÓNICA A PERSONAS ADULTAS\nPOR DISPOSICIÓN JUDICIAL",1,7]
[null,"ACCESO A CAMBIOS DE MEDIDAS SOCIOEDUCATIVAS PARA ADOLESCENTES INFRACTORES",40,7]
[null,"ACCESO A LA INFORMACIÓN PÚBLICA",96,10]
[null,"ACCESO A BENEFICIOS PENITENCIARIOS O CAMBIOS DE RÉGIMEN",2400,10]

{"sheet":"CANAL ATENCIÓN","index":7,"n_rows":12,"n_cols":9,"rows_kept":12,"cut":false,"hidden":false,"merged":[[0,0,0,3],[1,0,1,3]]}
["PRIORIZACIÓN DE TRÁMITES ADMINISTRATIVOS"]
["CANAL DE ATENCIÓN"]
[null,null,null,null,null,null,null,null,"Totalmente en Línea"]
["IDENTIFICADOR","TRÁMITE","CANAL ATENCIÓN","PUNTUACIÓN",null,null,null,null,"Inicia en Línea"]
[null,"ADMISIÓN DE ADOLESCENTES EN CONFLICTO CON LA LEY EN CENTROS DE ADOLESCENTES\nINFRACTORES","Presencial",{"$f":"IF(ISBLANK(C5),\"\",IF(C5=\"Totalmente en línea\",0,IF(C5=\"Inicia en línea\",6,15)))","v":15},null,null,null,null,"Presencial"]
[null,"ADMISIÓN DE PERSONA CON PRIVACIÓN PROVISIONAL DE LIBERTAD EN CENTROS DE\nPRIVACIÓN PROVISIONAL DE LIBERTAD","Presencial",15]
[null,"ADMISIÓN DE PERSONA DETENIDA EN UNIDAD DE ASEGURAMIENTO TRANSITORIO","Presencial",15]
[null,"ADMISIÓN DE PERSONAS CON SENTENCIA CONDENATORIA EJECUTORIADA EN\nCENTROS DE REHABILITACIÓN SOCIAL","Presencial",15]
[null,"INSTALACIÓN Y MONITOREO DE DISPOSITIVO DE VIGILANCIA ELECTRÓNICA A PERSONAS ADULTAS\nPOR DISPOSICIÓN JUDICIAL","Presencial",15]
[null,"ACCESO A CAMBIOS DE MEDIDAS SOCIOEDUCATIVAS PARA ADOLESCENTES INFRACTORES","Presencial",15]
[null,"ACCESO A LA INFORMACIÓN PÚBLICA","Totalmente en linea",0]
[null,"ACCESO A BENEFICIOS PENITENCIARIOS O CAMBIOS DE RÉGIMEN","Presencial",15]

{"sheet":"RESUMEN","index":8,"n_rows":15,"n_cols":27,"rows_kept":15,"cut":false,"hidden":false,"merged":[[1,0,2,0],[1,1,2,1],[1,2,2,2],[1,3,2,3],[1,4,2,4],[1,9,1,10],[1,11,1,12],[1,13,1,14],[1,15,2,15],[0,2,0,6],[0,7,0,14],[1,5,2,5],[1,6,2,6],[1,7,1,8]]}
[null,null,"BÁSICOS",null,null,null,null,"ADICIONALES"]
["ID trámite","Nombre del trámite","Demanda","Quejas","Costo para administración","Tiempo de respuesta","Canal de atención","Necesidades ciudadanas",null,"Susceptibilidad a corrupción",null,"Volumen de devoluciones",null,"Desconcentración",null,"PUNTAJE TOTAL"]
[null,null,null,null,null,null,null,"Criterio","Puntuación","Criterio","Puntuación","Criterio","Puntuación","Criterio","Puntuación",null,null,null,null,null,null,null,"demanda",0,12,21,30]
[null,"ADMISIÓN DE ADOLESCENTES EN CONFLICTO CON LA LEY EN CENTROS DE ADOLESCENTES\nINFRACTORES",12,0,0,0,15,"SI",{"$f":"IF(H4=\"SI\",20,0)","v":20},"NO",{"$f":"IF(J4=\"SI\",20,0)","v":0},"NO",{"$f":"IF(L4=\"SI\",20,0)","v":0},"NO",{"$f":"IF(N4=\"SI\",5,0)","v":0},{"$f":"SUM(C4:G4,I4,K4,M4,O4)","v":47},null,null,null,null,null,null,"quejas",0,10,18,25]
[null,"ADMISIÓN DE PERSONA CON PRIVACIÓN PROVISIONAL DE LIBERTAD EN CENTROS DE\nPRIVACIÓN PROVISIONAL DE LIBERTAD",30,0,0,0,15,"SI",20,"NO",0,"NO",0,"NO",0,65,null,null,null,null,null,null,"quejas",0,10,18,25]
[null,"ADMISIÓN DE PERSONA DETENIDA EN UNIDAD DE ASEGURAMIENTO TRANSITORIO",0,0,8,4,15,"SI",20,"NO",0,"NO",0,"NO",0,47,null,null,null,null,null,null,"quejas",0,10,18,25]
[null,"ADMISIÓN DE PERSONAS CON SENTENCIA CONDENATORIA EJECUTORIADA EN\nCENTROS DE REHABILITACIÓN SOCIAL",30,0,8,4,15,"SI",20,"NO",0,"NO",0,"NO",0,77,null,null,null,null,null,null,"quejas",0,10,18,25]
[null,"INSTALACIÓN Y MONITOREO DE DISPOSITIVO DE VIGILANCIA ELECTRÓNICA A PERSONAS ADULTAS\nPOR DISPOSICIÓN JUDICIAL",21,0,14,7,15,"SI",20,"NO",0,"NO",0,"NO",0,77,null,null,null,null,null,null,"quejas",0,10,18,25]
[null,"ACCESO A CAMBIOS DE MEDIDAS SOCIOEDUCATIVAS PARA ADOLESCENTES INFRACTORES",0,0,14,7,15,"SI",20,"NO",0,"NO",0,"NO",0,56,null,null,null,null,null,null,"quejas",0,10,18,25]
[null,"ACCESO A LA INFORMACIÓN PÚBLICA",12,25,20,10,0,"SI",20,"NO",0,"NO",0,"NO",0,87,null,null,null,null,null,null,"quejas",0,10,18,25]
[null,"ACCESO A BENEFICIOS PENITENCIARIOS O CAMBIOS DE RÉGIMEN",21,0,20,10,15,"SI",20,"NO",0,"NO",0,"NO",0,86,null,null,null,null,null,null,"quejas",0,10,18,25]
[null,null,null,null,null,null,null,null,null,null,null,null,null,null,null,null,null,null,null,null,null,null,"cpa",0,8,14,20]
[null,null,null,null,null,null,null,null,null,null,null,null,null,null,null,null,null,null,null,null,null,null,"tr",0,4,7,10]
[null,null,null,null,null,null,null,null,null,null,null,null,null,null,null,null,null,null,null,null,null,null,"ca",0,6,15]
[null,null,null,null,null,null,null,null,null,null,null,null,null,null,null,null,null,null,null,null,null,null,null,"SI","NO"]